{"text_format":"1","workbook":"xlsx","n_sheets":7,"sheets":["Liesmich","Wasser","Rutschung","Sturz","Lawine","Cockpit","Tabelle"],"not_rendered":{"charts":29,"images":3,"macros":1,"external_links":0,"defined_names":1,"comments":0,"pivot_tables":0},"unopened":[],"bounds":{"document_bytes":16777216,"sheet_cells":100000,"rows_first":2000,"rows_last":500,"rows_between":2000,"halvings":0,"cell_chars":16384,"cell_head_chars":4096},"cells_cut":0,"cells_raw":0,"read":"whole","date_system":"1900"}

{"sheet":"Liesmich","index":0,"n_rows":0,"n_cols":0,"rows_kept":0,"cut":false,"hidden":false,"merged":[]}

{"sheet":"Wasser","index":1,"n_rows":147,"n_cols":28,"rows_kept":147,"cut":false,"hidden":false,"merged":[]}
["Hauptprozess Wasser"]
[]
["SCHUTZGUT",null,null,null,null,"BETROFFENE (in Gefahren-  und Gefahrenhinweisgebieten)",null,null,null,null,null,null,null,null,"BETROFFENHEIT (durch Szenarien)",null,null,null,null,null,"RISIKO individuell",null,"RISIKO kollektiv"]
[]
[null,null,null,null,null,null,null,null,null,null,null,null,null,null,null,null,null,null,null,null,"individuelles Todesfallrisiko",null,"monetarisiertes Risiko"]
[]
[null,null,null,null,null,"gesamt",null,"pro Gebiet",null,"pro Gefahrenstufe",null,null,null,null,"nach Eintretenswahrscheinlichkeit und Intensität",null,null,null,null,null,"Anzahl Personen mit r > 10-5",null,"Schadenausmass Awj pro Grundszenario [CHF]",null,null,null,null,"Risiko [CHF/a]"]
[]
[null,null,null,null,null,null,null,null,null,"rot","blau","gelb","gelb-weiss",null,null,"30-jährlich","100-jährlich","300-jährlich","extrem",null,null,null,"30-jährlich","100-jährlich","300-jährlich","extrem"]
[null,"Wohnbe-",null,null,null,null,null,"im Gefahrengebiet (GK)",null,"[Anz.]","[Anz.]","[Anz.]","[Anz.]",null,"schwach",0,0,0,0,null,0,null,0,0,0,0,null,0]
[null,"völkerung",null,null,null,null,null,0,null,0,0,0,0,null,"mittel",0,0,0,0]
[null,"total [Anz.]",null,null,null,"total [Anz.]",null,null,null,null,null,null,null,null,"stark",0,0,0,0]
[null,0,null,null,null,0,null,"im Gefahrenhinweisgebiet (GHK)"]
[null,null,null,null,null,null,null,0]
[]
["Personen",null,null,null,null,null,null,null,null,"rot","blau","gelb","gelb-weiss",null,null,"30-jährlich","100-jährlich","300-jährlich","extrem",null,null,null,"30-jährlich","100-jährlich","300-jährlich","extrem"]
[null,"Beschäf-",null,null,null,null,null,"im Gefahrengebiet (GK)",null,"[Anz.]","[Anz.]","[Anz.]","[Anz.]",null,"schwach",0,0,0,0,null,0,null,0,0,0,0,null,0]
[null,"tigte",null,null,null,null,null,0,null,0,0,0,0,null,"mittel",0,0,0,0]
[null,"total [Anz.]",null,null,null,"total [Anz.]",null,null,null,null,null,null,null,null,"stark",0,0,0,0]
[null,0,null,null,null,0,null,"im Gefahrenhinweisgebiet (GHK)"]
[null,null,null,null,null,null,null,0]
[]
[null,null,null,null,null,null,null,null,null,"rot","blau","gelb","gelb-weiss",null,null,"30-jährlich","100-jährlich","300-jährlich","extrem",null,null,null,"30-jährlich","100-jährlich","300-jährlich","extrem"]
["Erhebliche","Gebäude",null,"wohnen",null,null,null,"im Gefahrengebiet (GK)",null,"[m2]","[m2]","[m2]","[m2]",null,"schwach",0,0,0,0,null,null,null,0,0,0,0,null,0]
["Sachwerte","total [m2]",null,"total [m2]",null,"total [m2]",null,0,null,0,0,0,0,null,"mittel",0,0,0,0]
[null,0,null,0,null,0,null,0,null,null,null,null,null,null,"stark",0,0,0,0]
[null,"total [Anz.]",null,"total [Anz.]",null,"total [Anz.]",null,"im Gefahrenhinweisgebiet (GHK)"]
[null,0,null,0,null,0,null,0]
[null,null,null,null,null,null,null,0]
[null,null,null,null,null,null,null,null,null,"rot","blau","gelb","gelb-weiss",null,null,"30-jährlich","100-jährlich","300-jährlich","extrem",null,null,null,"30-jährlich","100-jährlich","300-jährlich","extrem"]
[null,null,null,"arbeiten",null,null,null,"im Gefahrengebiet (GK)",null,"[m2]","[m2]","[m2]","[m2]",null,"schwach",0,0,0,0,null,null,null,0,0,0,0,null,0]
[null,null,null,"total [m2]",null,"total [m2]",null,0,null,0,0,0,0,null,"mittel",0,0,0,0]
[null,null,null,0,null,0,null,0,null,null,null,null,null,null,"stark",0,0,0,0]
[null,null,null,"total [Anz.]",null,"total [Anz.]",null,"im Gefahrenhinweisgebiet (GHK)"]
[null,null,null,0,null,0,null,0]
[null,null,null,null,null,null,null,0]
[null,null,null,null,null,null,null,null,null,"rot","blau","gelb","gelb-weiss",null,null,"30-jährlich","100-jährlich","300-jährlich","extrem",null,null,null,"30-jährlich","100-jährlich","300-jährlich","extrem"]
[null,null,null,"gemischt",null,null,null,"im Gefahrengebiet (GK)",null,"[m2]","[m2]","[m2]","[m2]",null,"schwach",0,0,0,0,null,null,null,0,0,0,0,null,0]
[null,null,null,"total [m2]",null,"total [m2]",null,0,null,0,0,0,0,null,"mittel",0,0,0,0]
[null,null,null,0,null,0,null,0,null,null,null,null,null,null,"stark",0,0,0,0]
[null,null,null,"total [Anz.]",null,"total [Anz.]",null,"im Gefahrenhinweisgebiet (GHK)"]
[null,null,null,0,null,0,null,0]
[null,null,null,null,null,null,null,0]
[null,null,null,null,null,null,null,null,null,"rot","blau","gelb","gelb-weiss",null,null,"30-jährlich","100-jährlich","300-jährlich","extrem",null,null,null,"30-jährlich","100-jährlich","300-jährlich","extrem"]
[null,null,null,"übrige",null,null,null,"im Gefahrengebiet (GK)",null,"[m2]","[m2]","[m2]","[m2]",null,"schwach",0,0,0,0,null,null,null,0,0,0,0,null,0]
[null,null,null,"total [m2]",null,"total [m2]",null,0,null,0,0,0,0,null,"mittel",0,0,0,0]
[null,null,null,0,null,0,null,0,null,null,null,null,null,null,"stark",0,0,0,0]
[null,null,null,"total [Anz.]",null,"total [Anz.]",null,"im Gefahrenhinweisgebiet (GHK)"]
[null,null,null,0,null,0,null,0]
[null,null,null,null,null,null,null,0]
[]
[null,"Strasse",null,"Eigentümer",null,null,null,"im Gefahrengebiet (GK)"]
[null,"total [m]",null,"Bund",null,null,null,0]
[null,0,null,"total [m]",null,"total [m]"]
[null,null,null,0,null,0,null,"im Gefahrenhinweisgebiet (GHK)"]
[null,null,null,null,null,null,null,0]
[]
[]
[null,null,null,"Eigentümer",null,null,null,"im Gefahrengebiet (GK)"]
[null,null,null,"Kanton",null,null,null,0]
[null,null,null,"total [m]",null,"total [m]"]
[null,null,null,0,null,0,null,"im Gefahrenhinweisgebiet (GHK)"]
[null,null,null,null,null,null,null,0]
[]
[]
[null,null,null,"Eigentümer",null,null,null,"im Gefahrengebiet (GK)"]
[null,null,null,"Gemeinde",null,null,null,0]
[null,null,null,"total [m]",null,"total [m]"]
[null,null,null,0,null,0,null,"im Gefahrenhinweisgebiet (GHK)"]
[null,null,null,null,null,null,null,0]
[]
[]
[null,"Bahn",null,"Normal-",null,null,null,"im Gefahrengebiet (GK)"]
[null,"total [m]",null,"spur",null,null,null,0]
[null,null,null,"total [m]",null,"total [m]"]
[null,0,null,0,null,0,null,"im Gefahrenhinweisgebiet (GHK)"]
[null,null,null,null,null,null,null,0]
[]
[]
[null,null,null,"Schmal-",null,null,null,"im Gefahrengebiet (GK)"]
[null,null,null,"spur",null,null,null,0]
[null,null,null,"total [m]",null,"total [m]"]
[null,null,null,0,null,0,null,"im Gefahrenhinweisgebiet (GHK)"]
[null,null,null,null,null,null,null,0]
[]
[]
[null,null,null,"Schmalspur",null,null,null,"im Gefahrengebiet (GK)"]
[null,null,null,"mit Normal-",null,null,null,0]
[null,null,null,"spur",null,"total [m]"]
[null,null,null,"total [m]",null,0,null,"im Gefahrenhinweisgebiet (GHK)"]
[null,null,null,0,null,null,null,0]
[]
[]
[null,"Kulturgüter",null,null,null,null,null,"im Gefahrengebiet (GK)"]
[null,"total [Anz.]",null,null,null,null,null,0]
[null,null,null,null,null,"total [Anz.]"]
[null,0,null,null,null,0,null,"im Gefahrenhinweisgebiet (GHK)"]
[null,null,null,null,null,null,null,0]
[]
[]
[null,"Bauzonen",null,"wohnen",null,null,null,"im Gefahrengebiet (GK)"]
[null,"total [m2]",null,"total [m2]",null,null,null,0]
[null,null,null,0,null,"total [m2]"]
[null,0,null,null,null,0,null,"im Gefahrenhinweisgebiet (GHK)"]
[null,null,null,null,null,null,null,0]
[]
[]
[null,null,null,"arbeiten",null,null,null,"im Gefahrengebiet (GK)"]
[null,null,null,"total [m2]",null,null,null,0]
[null,null,null,0,null,"total [m2]"]
[null,null,null,null,null,0,null,"im Gefahrenhinweisgebiet (GHK)"]
[null,null,null,null,null,null,null,0]
[]
[]
[null,null,null,"gemischt",null,null,null,"im Gefahrengebiet (GK)"]
[null,null,null,"total [m2]",null,null,null,0]
[null,null,null,0,null,"total [m2]"]
[null,null,null,null,null,0,null,"im Gefahrenhinweisgebiet (GHK)"]
[null,null,null,null,null,null,null,0]
[]
[]
[null,null,null,"übrige",null,null,null,"im Gefahrengebiet (GK)"]
[null,null,null,"total [m2]",null,null,null,0]
[null,null,null,0,null,"total [m2]"]
[null,null,null,null,null,0,null,"im Gefahrenhinweisgebiet (GHK)"]
[null,null,null,null,null,null,null,0]
[]
[]
[null,"Lebens-",null,null,null,null,null,"im Gefahrengebiet (GK)"]
[null,"grundlagen",null,null,null,null,null,0]
[null,"Boden",null,null,null,"total [m2]"]
[null,"total [m2]",null,null,null,0,null,"im Gefahrenhinweisgebiet (GHK)"]
[null,0,null,null,null,null,null,0]
[]
[]
[null,"Lebens-",null,null,null,null,null,"im Gefahrengebiet (GK)"]
[null,"grundlagen",null,null,null,null,null,0]
[null,"Wasser",null,null,null,"total [m2]"]
[null,"total [m2]",null,null,null,0,null,"im Gefahrenhinweisgebiet (GHK)"]
[null,0,null,null,null,null,null,0]
[]
[]
[null,"Sonder-",null,null,null,null,null,"im Gefahrengebiet (GK)"]
[null,"objekte",null,null,null,null,null,0]
[null,"total [Anz.]",null,null,null,"total [Anz.]"]
[null,0,null,null,null,0,null,"im Gefahrenhinweisgebiet (GHK)"]
[null,null,null,null,null,null,null,0]

{"sheet":"Rutschung","index":2,"n_rows":147,"n_cols":28,"rows_kept":147,"cut":false,"hidden":false,"merged":[]}
["Hauptprozess Rutschung"]
[]
["SCHUTZGUT",null,null,null,null,"BETROFFENE (in Gefahren-  und Gefahrenhinweisgebieten)",null,null,null,null,null,null,null,null,"BETROFFENHEIT (durch Szenarien)",null,null,null,null,null,"RISIKO individuell",null,"RISIKO kollektiv"]
[]
[null,null,null,null,null,null,null,null,null,null,null,null,null,null,null,null,null,null,null,null,"individuelles Todesfallrisiko",null,"monetarisiertes Risiko"]
[]
[null,null,null,null,null,"gesamt",null,"pro Gebiet",null,"pro Gefahrenstufe",null,null,null,null,"nach Eintretenswahrscheinlichkeit und Intensität",null,null,null,null,null,"Anzahl Personen mit r > 10-5",null,"Schadenausmass Awj pro Grundszenario [CHF]",null,null,null,null,"Risiko [CHF/a]"]
[]
[null,null,null,null,null,null,null,null,null,"rot","blau","gelb","gelb-weiss",null,null,"30-jährlich","100-jährlich","300-jährlich","extrem",null,null,null,"30-jährlich","100-jährlich","300-jährlich","extrem"]
[null,"Wohnbe-",null,null,null,null,null,"im Gefahrengebiet (GK)",null,"[Anz.]","[Anz.]","[Anz.]","[Anz.]",null,"schwach",0,0,0,0,null,0,null,0,0,0,0,null,0]
[null,"völkerung",null,null,null,null,null,0,null,0,0,0,0,null,"mittel",0,0,0,0]
[null,"total [Anz.]",null,null,null,"total [Anz.]",null,null,null,null,null,null,null,null,"stark",0,0,0,0]
[null,0,null,null,null,0,null,"im Gefahrenhinweisgebiet (GHK)"]
[null,null,null,null,null,null,null,0]
[]
["Personen",null,null,null,null,null,null,null,null,"rot","blau","gelb","gelb-weiss",null,null,"30-jährlich","100-jährlich","300-jährlich","extrem",null,null,null,"30-jährlich","100-jährlich","300-jährlich","extrem"]
[null,"Beschäf-",null,null,null,null,null,"im Gefahrengebiet (GK)",null,"[Anz.]","[Anz.]","[Anz.]","[Anz.]",null,"schwach",0,0,0,0,null,0,null,0,0,0,0,null,0]
[null,"tigte",null,null,null,null,null,0,null,0,0,0,0,null,"mittel",0,0,0,0]
[null,"total [Anz.]",null,null,null,"total [Anz.]",null,null,null,null,null,null,null,null,"stark",0,0,0,0]
[null,0,null,null,null,0,null,"im Gefahrenhinweisgebiet (GHK)"]
[null,null,null,null,null,null,null,0]
[]
[null,null,null,null,null,null,null,null,null,"rot","blau","gelb","gelb-weiss",null,null,"30-jährlich","100-jährlich","300-jährlich","extrem",null,null,null,"30-jährlich","100-jährlich","300-jährlich","extrem"]
["Erhebliche","Gebäude",null,"wohnen",null,null,null,"im Gefahrengebiet (GK)",null,"[m2]","[m2]","[m2]","[m2]",null,"schwach",0,0,0,0,null,null,null,0,0,0,0,null,0]
["Sachwerte","total [m2]",null,"total [m2]",null,"total [m2]",null,0,null,0,0,0,0,null,"mittel",0,0,0,0]
[null,0,null,0,null,0,null,0,null,null,null,null,null,null,"stark",0,0,0,0]
[null,"total [Anz.]",null,"total [Anz.]",null,"total [Anz.]",null,"im Gefahrenhinweisgebiet (GHK)"]
[null,0,null,0,null,0,null,0]
[null,null,null,null,null,null,null,0]
[null,null,null,null,null,null,null,null,null,"rot","blau","gelb","gelb-weiss",null,null,"30-jährlich","100-jährlich","300-jährlich","extrem",null,null,null,"30-jährlich","100-jährlich","300-jährlich","extrem"]
[null,null,null,"arbeiten",null,null,null,"im Gefahrengebiet (GK)",null,"[m2]","[m2]","[m2]","[m2]",null,"schwach",0,0,0,0,null,null,null,0,0,0,0,null,0]
[null,null,null,"total [m2]",null,"total [m2]",null,0,null,0,0,0,0,null,"mittel",0,0,0,0]
[null,null,null,0,null,0,null,0,null,null,null,null,null,null,"stark",0,0,0,0]
[null,null,null,"total [Anz.]",null,"total [Anz.]",null,"im Gefahrenhinweisgebiet (GHK)"]
[null,null,null,0,null,0,null,0]
[null,null,null,null,null,null,null,0]
[null,null,null,null,null,null,null,null,null,"rot","blau","gelb","gelb-weiss",null,null,"30-jährlich","100-jährlich","300-jährlich","extrem",null,null,null,"30-jährlich","100-jährlich","300-jährlich","extrem"]
[null,null,null,"gemischt",null,null,null,"im Gefahrengebiet (GK)",null,"[m2]","[m2]","[m2]","[m2]",null,"schwach",0,0,0,0,null,null,null,0,0,0,0,null,0]
[null,null,null,"total [m2]",null,"total [m2]",null,0,null,0,0,0,0,null,"mittel",0,0,0,0]
[null,null,null,0,null,0,null,0,null,null,null,null,null,null,"stark",0,0,0,0]
[null,null,null,"total [Anz.]",null,"total [Anz.]",null,"im Gefahrenhinweisgebiet (GHK)"]
[null,null,null,0,null,0,null,0]
[null,null,null,null,null,null,null,0]
[null,null,null,null,null,null,null,null,null,"rot","blau","gelb","gelb-weiss",null,null,"30-jährlich","100-jährlich","300-jährlich","extrem",null,null,null,"30-jährlich","100-jährlich","300-jährlich","extrem"]
[null,null,null,"übrige",null,null,null,"im Gefahrengebiet (GK)",null,"[m2]","[m2]","[m2]","[m2]",null,"schwach",0,0,0,0,null,null,null,0,0,0,0,null,0]
[null,null,null,"total [m2]",null,"total [m2]",null,0,null,0,0,0,0,null,"mittel",0,0,0,0]
[null,null,null,0,null,0,null,0,null,null,null,null,null,null,"stark",0,0,0,0]
[null,null,null,"total [Anz.]",null,"total [Anz.]",null,"im Gefahrenhinweisgebiet (GHK)"]
[null,null,null,0,null,0,null,0]
[null,null,null,null,null,null,null,0]
[]
[null,"Strasse",null,"Eigentümer",null,null,null,"im Gefahrengebiet (GK)"]
[null,"total [m]",null,"Bund",null,null,null,0]
[null,0,null,"total [m]",null,"total [m]"]
[null,null,null,0,null,0,null,"im Gefahrenhinweisgebiet (GHK)"]
[null,null,null,null,null,null,null,0]
[]
[]
[null,null,null,"Eigentümer",null,null,null,"im Gefahrengebiet (GK)"]
[null,null,null,"Kanton",null,null,null,0]
[null,null,null,"total [m]",null,"total [m]"]
[null,null,null,0,null,0,null,"im Gefahrenhinweisgebiet (GHK)"]
[null,null,null,null,null,null,null,0]
[]
[]
[null,null,null,"Eigentümer",null,null,null,"im Gefahrengebiet (GK)"]
[null,null,null,"Gemeinde",null,null,null,0]
[null,null,null,"total [m]",null,"total [m]"]
[null,null,null,0,null,0,null,"im Gefahrenhinweisgebiet (GHK)"]
[null,null,null,null,null,null,null,0]
[]
[]
[null,"Bahn",null,"Normal-",null,null,null,"im Gefahrengebiet (GK)"]
[null,"total [m]",null,"spur",null,null,null,0]
[null,null,null,"total [m]",null,"total [m]"]
[null,0,null,0,null,0,null,"im Gefahrenhinweisgebiet (GHK)"]
[null,null,null,null,null,null,null,0]
[]
[]
[null,null,null,"Schmal-",null,null,null,"im Gefahrengebiet (GK)"]
[null,null,null,"spur",null,null,null,0]
[null,null,null,"total [m]",null,"total [m]"]
[null,null,null,0,null,0,null,"im Gefahrenhinweisgebiet (GHK)"]
[null,null,null,null,null,null,null,0]
[]
[]
[null,null,null,"Schmalspur",null,null,null,"im Gefahrengebiet (GK)"]
[null,null,null,"mit Normal-",null,null,null,0]
[null,null,null,"spur",null,"total [m]"]
[null,null,null,"total [m]",null,0,null,"im Gefahrenhinweisgebiet (GHK)"]
[null,null,null,0,null,null,null,0]
[]
[]
[null,"Kulturgüter",null,null,null,null,null,"im Gefahrengebiet (GK)"]
[null,"total [Anz.]",null,null,null,null,null,0]
[null,null,null,null,null,"total [Anz.]"]
[null,0,null,null,null,0,null,"im Gefahrenhinweisgebiet (GHK)"]
[null,null,null,null,null,null,null,0]
[]
[]
[null,"Bauzonen",null,"wohnen",null,null,null,"im Gefahrengebiet (GK)"]
[null,"total [m2]",null,"total [m2]",null,null,null,0]
[null,null,null,0,null,"total [m2]"]
[null,0,null,null,null,0,null,"im Gefahrenhinweisgebiet (GHK)"]
[null,null,null,null,null,null,null,0]
[]
[]
[null,null,null,"arbeiten",null,null,null,"im Gefahrengebiet (GK)"]
[null,null,null,"total [m2]",null,null,null,0]
[null,null,null,0,null,"total [m2]"]
[null,null,null,null,null,0,null,"im Gefahrenhinweisgebiet (GHK)"]
[null,null,null,null,null,null,null,0]
[]
[]
[null,null,null,"gemischt",null,null,null,"im Gefahrengebiet (GK)"]
[null,null,null,"total [m2]",null,null,null,0]
[null,null,null,0,null,"total [m2]"]
[null,null,null,null,null,0,null,"im Gefahrenhinweisgebiet (GHK)"]
[null,null,null,null,null,null,null,0]
[]
[]
[null,null,null,"übrige",null,null,null,"im Gefahrengebiet (GK)"]
[null,null,null,"total [m2]",null,null,null,0]
[null,null,null,0,null,"total [m2]"]
[null,null,null,null,null,0,null,"im Gefahrenhinweisgebiet (GHK)"]
[null,null,null,null,null,null,null,0]
[]
[]
[null,"Lebens-",null,null,null,null,null,"im Gefahrengebiet (GK)"]
[null,"grundlagen",null,null,null,null,null,0]
[null,"Boden",null,null,null,"total [m2]"]
[null,"total [m2]",null,null,null,0,null,"im Gefahrenhinweisgebiet (GHK)"]
[null,0,null,null,null,null,null,0]
[]
[]
[null,"Lebens-",null,null,null,null,null,"im Gefahrengebiet (GK)"]
[null,"grundlagen",null,null,null,null,null,0]
[null,"Wasser",null,null,null,"total [m2]"]
[null,"total [m2]",null,null,null,0,null,"im Gefahrenhinweisgebiet (GHK)"]
[null,0,null,null,null,null,null,0]
[]
[]
[null,"Sonder-",null,null,null,null,null,"im Gefahrengebiet (GK)"]
[null,"objekte",null,null,null,null,null,0]
[null,"total [Anz.]",null,null,null,"total [Anz.]"]
[null,0,null,null,null,0,null,"im Gefahrenhinweisgebiet (GHK)"]
[null,null,null,null,null,null,null,0]

{"sheet":"Sturz","index":3,"n_rows":147,"n_cols":28,"rows_kept":147,"cut":false,"hidden":false,"merged":[]}
["Hauptprozess Sturz"]
[]
["SCHUTZGUT",null,null,null,null,"BETROFFENE (in Gefahren-  und Gefahrenhinweisgebieten)",null,null,null,null,null,null,null,null,"BETROFFENHEIT (durch Szenarien)",null,null,null,null,null,"RISIKO individuell",null,"RISIKO kollektiv"]
[]
[null,null,null,null,null,null,null,null,null,null,null,null,null,null,null,null,null,null,null,null,"individuelles Todesfallrisiko",null,"monetarisiertes Risiko"]
[]
[null,null,null,null,null,"gesamt",null,"pro Gebiet",null,"pro Gefahrenstufe",null,null,null,null,"nach Eintretenswahrscheinlichkeit und Intensität",null,null,null,null,null,"Anzahl Personen mit r > 10-5",null,"Schadenausmass Awj pro Grundszenario [CHF]",null,null,null,null,"Risiko [CHF/a]"]
[]
[null,null,null,null,null,null,null,null,null,"rot","blau","gelb","gelb-weiss",null,null,"30-jährlich","100-jährlich","300-jährlich","extrem",null,null,null,"30-jährlich","100-jährlich","300-jährlich","extrem"]
[null,"Wohnbe-",null,null,null,null,null,"im Gefahrengebiet (GK)",null,"[Anz.]","[Anz.]","[Anz.]","[Anz.]",null,"schwach",0,0,0,0,null,0,null,0,0,0,0,null,0]
[null,"völkerung",null,null,null,null,null,0,null,0,0,0,0,null,"mittel",0,0,0,0]
[null,"total [Anz.]",null,null,null,"total [Anz.]",null,null,null,null,null,null,null,null,"stark",0,0,0,0]
[null,0,null,null,null,0,null,"im Gefahrenhinweisgebiet (GHK)"]
[null,null,null,null,null,null,null,0]
[]
["Personen",null,null,null,null,null,null,null,null,"rot","blau","gelb","gelb-weiss",null,null,"30-jährlich","100-jährlich","300-jährlich","extrem",null,null,null,"30-jährlich","100-jährlich","300-jährlich","extrem"]
[null,"Beschäf-",null,null,null,null,null,"im Gefahrengebiet (GK)",null,"[Anz.]","[Anz.]","[Anz.]","[Anz.]",null,"schwach",0,0,0,0,null,0,null,0,0,0,0,null,0]
[null,"tigte",null,null,null,null,null,0,null,0,0,0,0,null,"mittel",0,0,0,0]
[null,"total [Anz.]",null,null,null,"total [Anz.]",null,null,null,null,null,null,null,null,"stark",0,0,0,0]
[null,0,null,null,null,0,null,"im Gefahrenhinweisgebiet (GHK)"]
[null,null,null,null,null,null,null,0]
[]
[null,null,null,null,null,null,null,null,null,"rot","blau","gelb","gelb-weiss",null,null,"30-jährlich","100-jährlich","300-jährlich","extrem",null,null,null,"30-jährlich","100-jährlich","300-jährlich","extrem"]
["Erhebliche","Gebäude",null,"wohnen",null,null,null,"im Gefahrengebiet (GK)",null,"[m2]","[m2]","[m2]","[m2]",null,"schwach",0,0,0,0,null,null,null,0,0,0,0,null,0]
["Sachwerte","total [m2]",null,"total [m2]",null,"total [m2]",null,0,null,0,0,0,0,null,"mittel",0,0,0,0]
[null,0,null,0,null,0,null,0,null,null,null,null,null,null,"stark",0,0,0,0]
[null,"total [Anz.]",null,"total [Anz.]",null,"total [Anz.]",null,"im Gefahrenhinweisgebiet (GHK)"]
[null,0,null,0,null,0,null,0]
[null,null,null,null,null,null,null,0]
[null,null,null,null,null,null,null,null,null,"rot","blau","gelb","gelb-weiss",null,null,"30-jährlich","100-jährlich","300-jährlich","extrem",null,null,null,"30-jährlich","100-jährlich","300-jährlich","extrem"]
[null,null,null,"arbeiten",null,null,null,"im Gefahrengebiet (GK)",null,"[m2]","[m2]","[m2]","[m2]",null,"schwach",0,0,0,0,null,null,null,0,0,0,0,null,0]
[null,null,null,"total [m2]",null,"total [m2]",null,0,null,0,0,0,0,null,"mittel",0,0,0,0]
[null,null,null,0,null,0,null,0,null,null,null,null,null,null,"stark",0,0,0,0]
[null,null,null,"total [Anz.]",null,"total [Anz.]",null,"im Gefahrenhinweisgebiet (GHK)"]
[null,null,null,0,null,0,null,0]
[null,null,null,null,null,null,null,0]
[null,null,null,null,null,null,null,null,null,"rot","blau","gelb","gelb-weiss",null,null,"30-jährlich","100-jährlich","300-jährlich","extrem",null,null,null,"30-jährlich","100-jährlich","300-jährlich","extrem"]
[null,null,null,"gemischt",null,null,null,"im Gefahrengebiet (GK)",null,"[m2]","[m2]","[m2]","[m2]",null,"schwach",0,0,0,0,null,null,null,0,0,0,0,null,0]
[null,null,null,"total [m2]",null,"total [m2]",null,0,null,0,0,0,0,null,"mittel",0,0,0,0]
[null,null,null,0,null,0,null,0,null,null,null,null,null,null,"stark",0,0,0,0]
[null,null,null,"total [Anz.]",null,"total [Anz.]",null,"im Gefahrenhinweisgebiet (GHK)"]
[null,null,null,0,null,0,null,0]
[null,null,null,null,null,null,null,0]
[null,null,null,null,null,null,null,null,null,"rot","blau","gelb","gelb-weiss",null,null,"30-jährlich","100-jährlich","300-jährlich","extrem",null,null,null,"30-jährlich","100-jährlich","300-jährlich","extrem"]
[null,null,null,"übrige",null,null,null,"im Gefahrengebiet (GK)",null,"[m2]","[m2]","[m2]","[m2]",null,"schwach",0,0,0,0,null,null,null,0,0,0,0,null,0]
[null,null,null,"total [m2]",null,"total [m2]",null,0,null,0,0,0,0,null,"mittel",0,0,0,0]
[null,null,null,0,null,0,null,0,null,null,null,null,null,null,"stark",0,0,0,0]
[null,null,null,"total [Anz.]",null,"total [Anz.]",null,"im Gefahrenhinweisgebiet (GHK)"]
[null,null,null,0,null,0,null,0]
[null,null,null,null,null,null,null,0]
[]
[null,"Strasse",null,"Eigentümer",null,null,null,"im Gefahrengebiet (GK)"]
[null,"total [m]",null,"Bund",null,null,null,0]
[null,0,null,"total [m]",null,"total [m]"]
[null,null,null,0,null,0,null,"im Gefahrenhinweisgebiet (GHK)"]
[null,null,null,null,null,null,null,0]
[]
[]
[null,null,null,"Eigentümer",null,null,null,"im Gefahrengebiet (GK)"]
[null,null,null,"Kanton",null,null,null,0]
[null,null,null,"total [m]",null,"total [m]"]
[null,null,null,0,null,0,null,"im Gefahrenhinweisgebiet (GHK)"]
[null,null,null,null,null,null,null,0]
[]
[]
[null,null,null,"Eigentümer",null,null,null,"im Gefahrengebiet (GK)"]
[null,null,null,"Gemeinde",null,null,null,0]
[null,null,null,"total [m]",null,"total [m]"]
[null,null,null,0,null,0,null,"im Gefahrenhinweisgebiet (GHK)"]
[null,null,null,null,null,null,null,0]
[]
[]
[null,"Bahn",null,"Normal-",null,null,null,"im Gefahrengebiet (GK)"]
[null,"total [m]",null,"spur",null,null,null,0]
[null,null,null,"total [m]",null,"total [m]"]
[null,0,null,0,null,0,null,"im Gefahrenhinweisgebiet (GHK)"]
[null,null,null,null,null,null,null,0]
[]
[]
[null,null,null,"Schmal-",null,null,null,"im Gefahrengebiet (GK)"]
[null,null,null,"spur",null,null,null,0]
[null,null,null,"total [m]",null,"total [m]"]
[null,null,null,0,null,0,null,"im Gefahrenhinweisgebiet (GHK)"]
[null,null,null,null,null,null,null,0]
[]
[]
[null,null,null,"Schmalspur",null,null,null,"im Gefahrengebiet (GK)"]
[null,null,null,"mit Normal-",null,null,null,0]
[null,null,null,"spur",null,"total [m]"]
[null,null,null,"total [m]",null,0,null,"im Gefahrenhinweisgebiet (GHK)"]
[null,null,null,0,null,null,null,0]
[]
[]
[null,"Kulturgüter",null,null,null,null,null,"im Gefahrengebiet (GK)"]
[null,"total [Anz.]",null,null,null,null,null,0]
[null,null,null,null,null,"total [Anz.]"]
[null,0,null,null,null,0,null,"im Gefahrenhinweisgebiet (GHK)"]
[null,null,null,null,null,null,null,0]
[]
[]
[null,"Bauzonen",null,"wohnen",null,null,null,"im Gefahrengebiet (GK)"]
[null,"total [m2]",null,"total [m2]",null,null,null,0]
[null,null,null,0,null,"total [m2]"]
[null,0,null,null,null,0,null,"im Gefahrenhinweisgebiet (GHK)"]
[null,null,null,null,null,null,null,0]
[]
[]
[null,null,null,"arbeiten",null,null,null,"im Gefahrengebiet (GK)"]
[null,null,null,"total [m2]",null,null,null,0]
[null,null,null,0,null,"total [m2]"]
[null,null,null,null,null,0,null,"im Gefahrenhinweisgebiet (GHK)"]
[null,null,null,null,null,null,null,0]
[]
[]
[null,null,null,"gemischt",null,null,null,"im Gefahrengebiet (GK)"]
[null,null,null,"total [m2]",null,null,null,0]
[null,null,null,0,null,"total [m2]"]
[null,null,null,null,null,0,null,"im Gefahrenhinweisgebiet (GHK)"]
[null,null,null,null,null,null,null,0]
[]
[]
[null,null,null,"übrige",null,null,null,"im Gefahrengebiet (GK)"]
[null,null,null,"total [m2]",null,null,null,0]
[null,null,null,0,null,"total [m2]"]
[null,null,null,null,null,0,null,"im Gefahrenhinweisgebiet (GHK)"]
[null,null,null,null,null,null,null,0]
[]
[]
[null,"Lebens-",null,null,null,null,null,"im Gefahrengebiet (GK)"]
[null,"grundlagen",null,null,null,null,null,0]
[null,"Boden",null,null,null,"total [m2]"]
[null,"total [m2]",null,null,null,0,null,"im Gefahrenhinweisgebiet (GHK)"]
[null,0,null,null,null,null,null,0]
[]
[]
[null,"Lebens-",null,null,null,null,null,"im Gefahrengebiet (GK)"]
[null,"grundlagen",null,null,null,null,null,0]
[null,"Wasser",null,null,null,"total [m2]"]
[null,"total [m2]",null,null,null,0,null,"im Gefahrenhinweisgebiet (GHK)"]
[null,0,null,null,null,null,null,0]
[]
[]
[null,"Sonder-",null,null,null,null,null,"im Gefahrengebiet (GK)"]
[null,"objekte",null,null,null,null,null,0]
[null,"total [Anz.]",null,null,null,"total [Anz.]"]
[null,0,null,null,null,0,null,"im Gefahrenhinweisgebiet (GHK)"]
[null,null,null,null,null,null,null,0]

{"sheet":"Lawine","index":4,"n_rows":147,"n_cols":28,"rows_kept":147,"cut":false,"hidden":false,"merged":[]}
["Hauptprozess Lawine"]
[]
["SCHUTZGUT",null,null,null,null,"BETROFFENE (in Gefahren-  und Gefahrenhinweisgebieten)",null,null,null,null,null,null,null,null,"BETROFFENHEIT (durch Szenarien)",null,null,null,null,null,"RISIKO individuell",null,"RISIKO kollektiv"]
[]
[null,null,null,null,null,null,null,null,null,null,null,null,null,null,null,null,null,null,null,null,"individuelles Todesfallrisiko",null,"monetarisiertes Risiko"]
[]
[null,null,null,null,null,"gesamt",null,"pro Gebiet",null,"pro Gefahrenstufe",null,null,null,null,"nach Eintretenswahrscheinlichkeit und Intensität",null,null,null,null,null,"Anzahl Personen mit r > 10-5",null,"Schadenausmass Awj pro Grundszenario [CHF]",null,null,null,null,"Risiko [CHF/a]"]
[]
[null,null,null,null,null,null,null,null,null,"rot","blau","gelb","gelb-weiss",null,null,"30-jährlich","100-jährlich","300-jährlich","extrem",null,null,null,"30-jährlich","100-jährlich","300-jährlich","extrem"]
[null,"Wohnbe-",null,null,null,null,null,"im Gefahrengebiet (GK)",null,"[Anz.]","[Anz.]","[Anz.]","[Anz.]",null,"schwach",0,0,0,0,null,0,null,0,0,0,0,null,0]
[null,"völkerung",null,null,null,null,null,0,null,0,0,0,0,null,"mittel",0,0,0,0]
[null,"total [Anz.]",null,null,null,"total [Anz.]",null,null,null,null,null,null,null,null,"stark",0,0,0,0]
[null,0,null,null,null,0,null,"im Gefahrenhinweisgebiet (GHK)"]
[null,null,null,null,null,null,null,0]
[]
["Personen",null,null,null,null,null,null,null,null,"rot","blau","gelb","gelb-weiss",null,null,"30-jährlich","100-jährlich","300-jährlich","extrem",null,null,null,"30-jährlich","100-jährlich","300-jährlich","extrem"]
[null,"Beschäf-",null,null,null,null,null,"im Gefahrengebiet (GK)",null,"[Anz.]","[Anz.]","[Anz.]","[Anz.]",null,"schwach",0,0,0,0,null,0,null,0,0,0,0,null,0]
[null,"tigte",null,null,null,null,null,0,null,0,0,0,0,null,"mittel",0,0,0,0]
[null,"total [Anz.]",null,null,null,"total [Anz.]",null,null,null,null,null,null,null,null,"stark",0,0,0,0]
[null,0,null,null,null,0,null,"im Gefahrenhinweisgebiet (GHK)"]
[null,null,null,null,null,null,null,0]
[]
[null,null,null,null,null,null,null,null,null,"rot","blau","gelb","gelb-weiss",null,null,"30-jährlich","100-jährlich","300-jährlich","extrem",null,null,null,"30-jährlich","100-jährlich","300-jährlich","extrem"]
["Erhebliche","Gebäude",null,"wohnen",null,null,null,"im Gefahrengebiet (GK)",null,"[m2]","[m2]","[m2]","[m2]",null,"schwach",0,0,0,0,null,null,null,0,0,0,0,null,0]
["Sachwerte","total [m2]",null,"total [m2]",null,"total [m2]",null,0,null,0,0,0,0,null,"mittel",0,0,0,0]
[null,0,null,0,null,0,null,0,null,null,null,null,null,null,"stark",0,0,0,0]
[null,"total [Anz.]",null,"total [Anz.]",null,"total [Anz.]",null,"im Gefahrenhinweisgebiet (GHK)"]
[null,0,null,0,null,0,null,0]
[null,null,null,null,null,null,null,0]
[null,null,null,null,null,null,null,null,null,"rot","blau","gelb","gelb-weiss",null,null,"30-jährlich","100-jährlich","300-jährlich","extrem",null,null,null,"30-jährlich","100-jährlich","300-jährlich","extrem"]
[null,null,null,"arbeiten",null,null,null,"im Gefahrengebiet (GK)",null,"[m2]","[m2]","[m2]","[m2]",null,"schwach",0,0,0,0,null,null,null,0,0,0,0,null,0]
[null,null,null,"total [m2]",null,"total [m2]",null,0,null,0,0,0,0,null,"mittel",0,0,0,0]
[null,null,null,0,null,0,null,0,null,null,null,null,null,null,"stark",0,0,0,0]
[null,null,null,"total [Anz.]",null,"total [Anz.]",null,"im Gefahrenhinweisgebiet (GHK)"]
[null,null,null,0,null,0,null,0]
[null,null,null,null,null,null,null,0]
[null,null,null,null,null,null,null,null,null,"rot","blau","gelb","gelb-weiss",null,null,"30-jährlich","100-jährlich","300-jährlich","extrem",null,null,null,"30-jährlich","100-jährlich","300-jährlich","extrem"]
[null,null,null,"gemischt",null,null,null,"im Gefahrengebiet (GK)",null,"[m2]","[m2]","[m2]","[m2]",null,"schwach",0,0,0,0,null,null,null,0,0,0,0,null,0]
[null,null,null,"total [m2]",null,"total [m2]",null,0,null,0,0,0,0,null,"mittel",0,0,0,0]
[null,null,null,0,null,0,null,0,null,null,null,null,null,null,"stark",0,0,0,0]
[null,null,null,"total [Anz.]",null,"total [Anz.]",null,"im Gefahrenhinweisgebiet (GHK)"]
[null,null,null,0,null,0,null,0]
[null,null,null,null,null,null,null,0]
[null,null,null,null,null,null,null,null,null,"rot","blau","gelb","gelb-weiss",null,null,"30-jährlich","100-jährlich","300-jährlich","extrem",null,null,null,"30-jährlich","100-jährlich","300-jährlich","extrem"]
[null,null,null,"übrige",null,null,null,"im Gefahrengebiet (GK)",null,"[m2]","[m2]","[m2]","[m2]",null,"schwach",0,0,0,0,null,null,null,0,0,0,0,null,0]
[null,null,null,"total [m2]",null,"total [m2]",null,0,null,0,0,0,0,null,"mittel",0,0,0,0]
[null,null,null,0,null,0,null,0,null,null,null,null,null,null,"stark",0,0,0,0]
[null,null,null,"total [Anz.]",null,"total [Anz.]",null,"im Gefahrenhinweisgebiet (GHK)"]
[null,null,null,0,null,0,null,0]
[null,null,null,null,null,null,null,0]
[]
[null,"Strasse",null,"Eigentümer",null,null,null,"im Gefahrengebiet (GK)"]
[null,"total [m]",null,"Bund",null,null,null,0]
[null,0,null,"total [m]",null,"total [m]"]
[null,null,null,0,null,0,null,"im Gefahrenhinweisgebiet (GHK)"]
[null,null,null,null,null,null,null,0]
[]
[]
[null,null,null,"Eigentümer",null,null,null,"im Gefahrengebiet (GK)"]
[null,null,null,"Kanton",null,null,null,0]
[null,null,null,"total [m]",null,"total [m]"]
[null,null,null,0,null,0,null,"im Gefahrenhinweisgebiet (GHK)"]
[null,null,null,null,null,null,null,0]
[]
[]
[null,null,null,"Eigentümer",null,null,null,"im Gefahrengebiet (GK)"]
[null,null,null,"Gemeinde",null,null,null,0]
[null,null,null,"total [m]",null,"total [m]"]
[null,null,null,0,null,0,null,"im Gefahrenhinweisgebiet (GHK)"]
[null,null,null,null,null,null,null,0]
[]
[]
[null,"Bahn",null,"Normal-",null,null,null,"im Gefahrengebiet (GK)"]
[null,"total [m]",null,"spur",null,null,null,0]
[null,null,null,"total [m]",null,"total [m]"]
[null,0,null,0,null,0,null,"im Gefahrenhinweisgebiet (GHK)"]
[null,null,null,null,null,null,null,0]
[]
[]
[null,null,null,"Schmal-",null,null,null,"im Gefahrengebiet (GK)"]
[null,null,null,"spur",null,null,null,0]
[null,null,null,"total [m]",null,"total [m]"]
[null,null,null,0,null,0,null,"im Gefahrenhinweisgebiet (GHK)"]
[null,null,null,null,null,null,null,0]
[]
[]
[null,null,null,"Schmalspur",null,null,null,"im Gefahrengebiet (GK)"]
[null,null,null,"mit Normal-",null,null,null,0]
[null,null,null,"spur",null,"total [m]"]
[null,null,null,"total [m]",null,0,null,"im Gefahrenhinweisgebiet (GHK)"]
[null,null,null,0,null,null,null,0]
[]
[]
[null,"Kulturgüter",null,null,null,null,null,"im Gefahrengebiet (GK)"]
[null,"total [Anz.]",null,null,null,null,null,0]
[null,null,null,null,null,"total [Anz.]"]
[null,0,null,null,null,0,null,"im Gefahrenhinweisgebiet (GHK)"]
[null,null,null,null,null,null,null,0]
[]
[]
[null,"Bauzonen",null,"wohnen",null,null,null,"im Gefahrengebiet (GK)"]
[null,"total [m2]",null,"total [m2]",null,null,null,0]
[null,null,null,0,null,"total [m2]"]
[null,0,null,null,null,0,null,"im Gefahrenhinweisgebiet (GHK)"]
[null,null,null,null,null,null,null,0]
[]
[]
[null,null,null,"arbeiten",null,null,null,"im Gefahrengebiet (GK)"]
[null,null,null,"total [m2]",null,null,null,0]
[null,null,null,0,null,"total [m2]"]
[null,null,null,null,null,0,null,"im Gefahrenhinweisgebiet (GHK)"]
[null,null,null,null,null,null,null,0]
[]
[]
[null,null,null,"gemischt",null,null,null,"im Gefahrengebiet (GK)"]
[null,null,null,"total [m2]",null,null,null,0]
[null,null,null,0,null,"total [m2]"]
[null,null,null,null,null,0,null,"im Gefahrenhinweisgebiet (GHK)"]
[null,null,null,null,null,null,null,0]
[]
[]
[null,null,null,"übrige",null,null,null,"im Gefahrengebiet (GK)"]
[null,null,null,"total [m2]",null,null,null,0]
[null,null,null,0,null,"total [m2]"]
[null,null,null,null,null,0,null,"im Gefahrenhinweisgebiet (GHK)"]
[null,null,null,null,null,null,null,0]
[]
[]
[null,"Lebens-",null,null,null,null,null,"im Gefahrengebiet (GK)"]
[null,"grundlagen",null,null,null,null,null,0]
[null,"Boden",null,null,null,"total [m2]"]
[null,"total [m2]",null,null,null,0,null,"im Gefahrenhinweisgebiet (GHK)"]
[null,0,null,null,null,null,null,0]
[]
[]
[null,"Lebens-",null,null,null,null,null,"im Gefahrengebiet (GK)"]
[null,"grundlagen",null,null,null,null,null,0]
[null,"Wasser",null,null,null,"total [m2]"]
[null,"total [m2]",null,null,null,0,null,"im Gefahrenhinweisgebiet (GHK)"]
[null,0,null,null,null,null,null,0]
[]
[]
[null,"Sonder-",null,null,null,null,null,"im Gefahrengebiet (GK)"]
[null,"objekte",null,null,null,null,null,0]
[null,"total [Anz.]",null,null,null,"total [Anz.]"]
[null,0,null,null,null,0,null,"im Gefahrenhinweisgebiet (GHK)"]
[null,null,null,null,null,null,null,0]

{"sheet":"Cockpit","index":5,"n_rows":176,"n_cols":20,"rows_kept":176,"cut":false,"hidden":false,"merged":[]}
[]
[null,null,null,null,null,"Hauptprozess WASSER"]
[]
[null,"SCHUTZGUT",null,null,null,"BETROFFENE",null,null,null,null,"RISIKO"]
[]
[null,null,null,null,null,"nach Gefahrenstufe bzw. im Gefahrenhinweisgebiet",null,null,null,null,"Individuelles Todesfallrisiko ",null,null,null,null,"jährlicher Schadenerwartungswert in CHF"]
[]
[null,"Wohnbevölkerung ","total ",null,null,null,null,"Einwohnerinnen und Einwohner",{"$f":"Wasser!$B$13","v":0},null,null,null,"Einwohnerinnen und Einwohner",{"$f":"Wasser!$B$13","v":0}]
[null,null,{"$f":"Wasser!$B$13","v":0},null,null,null,null,"davon in Zonen  ",null,{"$f":"MAX(I11:I15,I23:I27,I51:I55,I63:I67,I91:I95,I103:I107,I131:I135,I143:I147)","v":0},null,null,"davon mit einem"]
[null,null,"Einwohnerinnen und",null,null,null,null,null,null,{"$f":"ROUNDUP((J9/10^(LEN(INT(J9))-1)),0)*10^(LEN(INT(J9))-1)","v":0},null,null,"individuellen Todesfallrisiko "]
[null,null,"Einwohner",null,null,null,null,"mit erheblicher Gefährdung",{"$f":"Wasser!$J$11","v":0},{"$f":"$J$10-I11","v":0}]
[null,null,null,null,null,null,null,"mit mittlerer Gefährdung",{"$f":"Wasser!$K$11","v":0},{"$f":"$J$10-I12","v":0},null,null,"grösser als 10-5",{"$f":"Wasser!$U$10","v":0}]
[null,null,null,null,null,null,null,"mit geringer Gefährdung",{"$f":"Wasser!$L$11","v":0},0,null,null,"kleiner als 10-5",{"$f":"SUM(I11:I14)-N12","v":0},null,null,null,"Personen",{"$f":"Wasser!$AB$10+Wasser!$AB$17","v":0}]
[null,null,null,null,null,null,null,"mit Restgefährdung",{"$f":"Wasser!$M$11","v":0},0,null,null,"nicht betroffen",{"$f":"N8-N12-N13","v":0},null,null,null,"davon Anteil in %"]
[null,null,null,null,null,null,null,"im Gefahrenhinweisgebiet",{"$f":"Wasser!$H$14","v":0},0]
[null,null,null,null,null,null,null,null,null,null,null,null,null,null,null,null,null,"häufige Ereignisse",{"$f":"100*(Tabelle!$E$5/Tabelle!$I$5)","v":{"$error":"#DIV/0!"}},{"$f":"Tabelle!$E$5","v":0}]
[null,null,null,null,null,null,null,null,null,null,null,null,null,null,null,null,null,"mittlere Ereignisse",{"$f":"100*(Tabelle!$F$5/Tabelle!$I$5)","v":{"$error":"#DIV/0!"}},{"$f":"Tabelle!$F$5","v":0}]
[null,null,null,null,null,null,null,null,null,null,null,null,null,null,null,null,null,"seltene Ereignisse",{"$f":"100*(Tabelle!$G$5/Tabelle!$I$5)","v":{"$error":"#DIV/0!"}},{"$f":"Tabelle!$G$5","v":0}]
[null,null,null,null,null,null,null,null,null,null,null,null,null,null,null,null,null,"sehr seltene Ereignisse",{"$f":"100*(Tabelle!$H$5/Tabelle!$I$5)","v":{"$error":"#DIV/0!"}},{"$f":"Tabelle!$H$5","v":0}]
[null,"Beschäftigte","total ",null,null,null,null,"Beschäftigte",{"$f":"Wasser!$B$20","v":0},null,null,null,"Beschäftigte",{"$f":"Wasser!$B$20","v":0}]
[null,null,{"$f":"Wasser!$B$20","v":0},null,null,null,null,"davon in Zonen  ",null,null,null,null,"davon mit einem"]
[null,null,"Beschäftigte",null,null,null,null,null,null,null,null,null,"individuellen Todesfallrisiko "]
[null,null,null,null,null,null,null,"mit erheblicher Gefährdung",{"$f":"Wasser!$J$18","v":0},{"$f":"$J$10-I23","v":0}]
[null,null,null,null,null,null,null,"mit mittlerer Gefährdung",{"$f":"Wasser!$K$18","v":0},{"$f":"$J$10-I24","v":0},null,null,"grösser als 10-5",{"$f":"Wasser!$U$17","v":0}]
[null,null,null,null,null,null,null,"mit geringer Gefährdung",{"$f":"Wasser!$L$18","v":0},0,null,null,"kleiner als 10-5",{"$f":"SUM(I23:I26)-N24","v":0}]
[null,null,null,null,null,null,null,"mit Restgefährdung",{"$f":"Wasser!$M$18","v":0},0,null,null,"nicht betroffen",{"$f":"N20-N24-N25","v":0}]
[null,null,null,null,null,null,null,"im Gefahrenhinweisgebiet",{"$f":"Wasser!$H$21","v":0},0]
[]
[]
[]
[]
[null,"Gebäude","total ",null,null,null,null,"m2 Gebäudefläche",{"$f":"Wasser!$B$26","v":0},null,null,null,null,null,null,null,null,"Gebäude",{"$f":"SUM(Wasser!$AB$24,Wasser!$AB$31,Wasser!$AB$38,Wasser!$AB$45)","v":0}]
[null,null,{"$f":"Wasser!$B$26","v":0},"m2",null,null,null,"davon in Zonen  ",null,{"$f":"MAX(I35:I39,I75:I79,I115:I119,I155:I159)","v":0},null,null,null,null,null,null,null,"davon Anteil in %"]
[null,null,"Gebäudefläche",null,null,null,null,null,null,{"$f":"ROUNDUP((J33/10^(LEN(INT(J33))-1)),0)*10^(LEN(INT(J33))-1)","v":0}]
[null,null,null,null,null,null,null,"mit erheblicher Gefährdung",{"$f":"Wasser!$J$25+Wasser!$J$32+Wasser!$J$39+Wasser!$J$46","v":0},{"$f":"$J$34-I35","v":0},null,null,null,null,null,null,null,"häufige Ereignisse",{"$f":"100*(Tabelle!$E$10/Tabelle!$I$10)","v":{"$error":"#DIV/0!"}},{"$f":"Tabelle!$E$10","v":0}]
[null,null,{"$f":"Wasser!$B$28","v":0},"Gebäude",null,null,null,"mit mittlerer Gefährdung",{"$f":"Wasser!$K$25+Wasser!$K$32+Wasser!$K$39+Wasser!$K$46","v":0},{"$f":"$J$34-I36","v":0},null,null,null,null,null,null,null,"mittlere Ereignisse",{"$f":"100*(Tabelle!$F$10/Tabelle!$I$10)","v":{"$error":"#DIV/0!"}},{"$f":"Tabelle!$F$10","v":0}]
[null,null,null,null,null,null,null,"mit geringer Gefährdung",{"$f":"Wasser!$L$25+Wasser!$L$32+Wasser!$L$39+Wasser!$L$46","v":0},0,null,null,null,null,null,null,null,"seltene Ereignisse",{"$f":"100*(Tabelle!$G$10/Tabelle!$I$10)","v":{"$error":"#DIV/0!"}},{"$f":"Tabelle!$G$10","v":0}]
[null,null,null,null,null,null,null,"mit Restgefährdung",{"$f":"Wasser!$M$25+Wasser!$M$32+Wasser!$M$39+Wasser!$M$46","v":0},0,null,null,null,null,null,null,null,"sehr seltene Ereignisse",{"$f":"100*(Tabelle!$H$10/Tabelle!$I$10)","v":{"$error":"#DIV/0!"}},{"$f":"Tabelle!$H$10","v":0}]
[null,null,null,null,null,null,null,"im Gefahrenhinweisgebiet",{"$f":"Wasser!$H$28+Wasser!$H$35+Wasser!$H$42+Wasser!$H$49","v":0},0]
[]
[]
[null,null,null,null,null,"Hauptprozess RUTSCHUNG"]
[]
[null,"SCHUTZGUT",null,null,null,"BETROFFENE",null,null,null,null,"RISIKO"]
[]
[null,null,null,null,null,"nach Gefahrenstufe bzw. im Gefahrenhinweisgebiet",null,null,null,null,"Individuelles Todesfallrisiko ",null,null,null,null,"jährlicher Schadenerwartungswert in CHF"]
[]
[null,"Wohnbevölkerung ","total ",null,null,null,null,"Einwohnerinnen und Einwohner",{"$f":"Rutschung!$B$13","v":0},null,null,null,"Einwohnerinnen und Einwohner",{"$f":"Rutschung!$B$13","v":0}]
[null,null,{"$f":"Rutschung!$B$13","v":0},null,null,null,null,"davon in Zonen  ",null,null,null,null,"davon mit einem"]
[null,null,"Einwohnerinnen und",null,null,null,null,null,null,null,null,null,"individuellen Todesfallrisiko "]
[null,null,"Einwohner",null,null,null,null,"mit erheblicher Gefährdung",{"$f":"Rutschung!$J$11","v":0},{"$f":"$J$10-I51","v":0}]
[null,null,null,null,null,null,null,"mit mittlerer Gefährdung",{"$f":"Rutschung!$K$11","v":0},{"$f":"$J$10-I52","v":0},null,null,"grösser als 10-5",{"$f":"Rutschung!$U$10","v":0}]
[null,null,null,null,null,null,null,"mit geringer Gefährdung",{"$f":"Rutschung!$L$11","v":0},0,null,null,"kleiner als 10-5",{"$f":"SUM(I51:I54)-N52","v":0},null,null,null,"Personen",{"$f":"Rutschung!$AB$10+Rutschung!$AB$17","v":0}]
[null,null,null,null,null,null,null,"mit Restgefährdung",{"$f":"Rutschung!$M$11","v":0},0,null,null,"nicht betroffen",{"$f":"N48-N52-N53","v":0},null,null,null,"davon Anteil in %"]
[null,null,null,null,null,null,null,"im Gefahrenhinweisgebiet",{"$f":"Rutschung!$H$14","v":0},0]
[null,null,null,null,null,null,null,null,null,null,null,null,null,null,null,null,null,"häufige Ereignisse",{"$f":"100*(Tabelle!$E$14/Tabelle!$I$14)","v":{"$error":"#DIV/0!"}},{"$f":"Tabelle!$E$14","v":0}]
[null,null,null,null,null,null,null,null,null,null,null,null,null,null,null,null,null,"mittlere Ereignisse",{"$f":"100*(Tabelle!$F$14/Tabelle!$I$14)","v":{"$error":"#DIV/0!"}},{"$f":"Tabelle!$F$14","v":0}]
[null,null,null,null,null,null,null,null,null,null,null,null,null,null,null,null,null,"seltene Ereignisse",{"$f":"100*(Tabelle!$G$14/Tabelle!$I$14)","v":{"$error":"#DIV/0!"}},{"$f":"Tabelle!$G$14","v":0}]
[null,null,null,null,null,null,null,null,null,null,null,null,null,null,null,null,null,"sehr seltene Ereignisse",{"$f":"100*(Tabelle!$H$14/Tabelle!$I$14)","v":{"$error":"#DIV/0!"}},{"$f":"Tabelle!$H$14","v":0}]
[null,"Beschäftigte","total ",null,null,null,null,"Beschäftigte",{"$f":"Rutschung!$B$20","v":0},null,null,null,"Beschäftigte",{"$f":"Rutschung!$B$20","v":0}]
[null,null,{"$f":"Rutschung!$B$20","v":0},null,null,null,null,"davon in Zonen  ",null,null,null,null,"davon mit einem"]
[null,null,"Beschäftigte",null,null,null,null,null,null,null,null,null,"individuellen Todesfallrisiko "]
[null,null,null,null,null,null,null,"mit erheblicher Gefährdung",{"$f":"Rutschung!$J$18","v":0},{"$f":"$J$10-I63","v":0}]
[null,null,null,null,null,null,null,"mit mittlerer Gefährdung",{"$f":"Rutschung!$K$18","v":0},{"$f":"$J$10-I64","v":0},null,null,"grösser als 10-5",{"$f":"Rutschung!$U$17","v":0}]
[null,null,null,null,null,null,null,"mit geringer Gefährdung",{"$f":"Rutschung!$L$18","v":0},0,null,null,"kleiner als 10-5",{"$f":"SUM(I63:I66)-N64","v":0}]
[null,null,null,null,null,null,null,"mit Restgefährdung",{"$f":"Rutschung!$M$18","v":0},0,null,null,"nicht betroffen",{"$f":"N60-N64-N65","v":0}]
[null,null,null,null,null,null,null,"im Gefahrenhinweisgebiet",{"$f":"Rutschung!$H$21","v":0},0]
[]
[]
[]
[]
[null,"Gebäude","total ",null,null,null,null,"m2 Gebäudefläche",{"$f":"Rutschung!$B$26","v":0},null,null,null,null,null,null,null,null,"Gebäude",{"$f":"SUM(Rutschung!$AB$24,Rutschung!$AB$31,Rutschung!$AB$38,Rutschung!$AB$45)","v":0}]
[null,null,{"$f":"Rutschung!$B$26","v":0},"m2",null,null,null,"davon in Zonen  ",null,null,null,null,null,null,null,null,null,"davon Anteil in %"]
[null,null,"Gebäudefläche"]
[null,null,null,null,null,null,null,"mit erheblicher Gefährdung",{"$f":"Rutschung!$J$25+Rutschung!$J$32+Rutschung!$J$39+Rutschung!$J$46","v":0},{"$f":"$J$34-I75","v":0},null,null,null,null,null,null,null,"häufige Ereignisse",{"$f":"100*(Tabelle!$E$19/Tabelle!$I$19)","v":{"$error":"#DIV/0!"}},{"$f":"Tabelle!$E$19","v":0}]
[null,null,{"$f":"Rutschung!$B$28","v":0},"Gebäude",null,null,null,"mit mittlerer Gefährdung",{"$f":"Rutschung!$K$25+Rutschung!$K$32+Rutschung!$K$39+Rutschung!$K$46","v":0},{"$f":"$J$34-I76","v":0},null,null,null,null,null,null,null,"mittlere Ereignisse",{"$f":"100*(Tabelle!$F$19/Tabelle!$I$19)","v":{"$error":"#DIV/0!"}},{"$f":"Tabelle!$F$19","v":0}]
[null,null,null,null,null,null,null,"mit geringer Gefährdung",{"$f":"Rutschung!$L$25+Rutschung!$L$32+Rutschung!$L$39+Rutschung!$L$46","v":0},0,null,null,null,null,null,null,null,"seltene Ereignisse",{"$f":"100*(Tabelle!$G$19/Tabelle!$I$19)","v":{"$error":"#DIV/0!"}},{"$f":"Tabelle!$G$19","v":0}]
[null,null,null,null,null,null,null,"mit Restgefährdung",{"$f":"Rutschung!$M$25+Rutschung!$M$32+Rutschung!$M$39+Rutschung!$M$46","v":0},0,null,null,null,null,null,null,null,"sehr seltene Ereignisse",{"$f":"100*(Tabelle!$H$19/Tabelle!$I$19)","v":{"$error":"#DIV/0!"}},{"$f":"Tabelle!$H$19","v":0}]
[null,null,null,null,null,null,null,"im Gefahrenhinweisgebiet",{"$f":"Rutschung!$H$28+Rutschung!$H$35+Rutschung!$H$42+Rutschung!$H$49","v":0},0]
[]
[]
[null,null,null,null,null,"Hauptprozess STURZ"]
[]
[null,"SCHUTZGUT",null,null,null,"BETROFFENE",null,null,null,null,"RISIKO"]
[]
[null,null,null,null,null,"nach Gefahrenstufe bzw. im Gefahrenhinweisgebiet",null,null,null,null,"Individuelles Todesfallrisiko ",null,null,null,null,"jährlicher Schadenerwartungswert in CHF"]
[]
[null,"Wohnbevölkerung ","total ",null,null,null,null,"Einwohnerinnen und Einwohner",{"$f":"Sturz!$B$13","v":0},null,null,null,"Einwohnerinnen und Einwohner",{"$f":"Sturz!$B$13","v":0}]
[null,null,{"$f":"Sturz!$B$13","v":0},null,null,null,null,"davon in Zonen  ",null,null,null,null,"davon mit einem"]
[null,null,"Einwohnerinnen und",null,null,null,null,null,null,null,null,null,"individuellen Todesfallrisiko "]
[null,null,"Einwohner",null,null,null,null,"mit erheblicher Gefährdung",{"$f":"Sturz!$J$11","v":0},{"$f":"$J$10-I91","v":0}]
[null,null,null,null,null,null,null,"mit mittlerer Gefährdung",{"$f":"Sturz!$K$11","v":0},{"$f":"$J$10-I92","v":0},null,null,"grösser als 10-5",{"$f":"Sturz!$U$10","v":0}]
[null,null,null,null,null,null,null,"mit geringer Gefährdung",{"$f":"Sturz!$L$11","v":0},0,null,null,"kleiner als 10-5",{"$f":"SUM(I91:I94)-N92","v":0},null,null,null,"Personen",{"$f":"Sturz!$AB$10+Sturz!$AB$17","v":0}]
[null,null,null,null,null,null,null,"mit Restgefährdung",{"$f":"Sturz!$M$11","v":0},0,null,null,"nicht betroffen",{"$f":"N88-N92-N93","v":0},null,null,null,"davon Anteil in %"]
[null,null,null,null,null,null,null,"im Gefahrenhinweisgebiet",{"$f":"Sturz!$H$14","v":0},0]
[null,null,null,null,null,null,null,null,null,null,null,null,null,null,null,null,null,"häufige Ereignisse",{"$f":"100*(Tabelle!$E$23/Tabelle!$I$23)","v":{"$error":"#DIV/0!"}},{"$f":"Tabelle!$E$23","v":0}]
[null,null,null,null,null,null,null,null,null,null,null,null,null,null,null,null,null,"mittlere Ereignisse",{"$f":"100*(Tabelle!$F$23/Tabelle!$I$23)","v":{"$error":"#DIV/0!"}},{"$f":"Tabelle!$F$23","v":0}]
[null,null,null,null,null,null,null,null,null,null,null,null,null,null,null,null,null,"seltene Ereignisse",{"$f":"100*(Tabelle!$G$23/Tabelle!$I$23)","v":{"$error":"#DIV/0!"}},{"$f":"Tabelle!$G$23","v":0}]
[null,null,null,null,null,null,null,null,null,null,null,null,null,null,null,null,null,"sehr seltene Ereignisse",{"$f":"100*(Tabelle!$H$23/Tabelle!$I$23)","v":{"$error":"#DIV/0!"}},{"$f":"Tabelle!$G$23","v":0}]
[null,"Beschäftigte","total ",null,null,null,null,"Beschäftigte",{"$f":"Sturz!$B$20","v":0},null,null,null,"Beschäftigte",{"$f":"Sturz!$B$20","v":0}]
[null,null,{"$f":"Sturz!$B$20","v":0},null,null,null,null,"davon in Zonen  ",null,null,null,null,"davon mit einem"]
[null,null,"Beschäftigte",null,null,null,null,null,null,null,null,null,"individuellen Todesfallrisiko "]
[null,null,null,null,null,null,null,"mit erheblicher Gefährdung",{"$f":"Sturz!$J$18","v":0},{"$f":"$J$10-I103","v":0}]
[null,null,null,null,null,null,null,"mit mittlerer Gefährdung",{"$f":"Sturz!$K$18","v":0},{"$f":"$J$10-I104","v":0},null,null,"grösser als 10-5",{"$f":"Sturz!$U$17","v":0}]
[null,null,null,null,null,null,null,"mit geringer Gefährdung",{"$f":"Sturz!$L$18","v":0},0,null,null,"kleiner als 10-5",{"$f":"SUM(I103:I106)-N104","v":0}]
[null,null,null,null,null,null,null,"mit Restgefährdung",{"$f":"Sturz!$M$18","v":0},0,null,null,"nicht betroffen",{"$f":"N100-N104-N105","v":0}]
[null,null,null,null,null,null,null,"im Gefahrenhinweisgebiet",{"$f":"Sturz!$H$21","v":0},0]
[]
[]
[]
[]
[null,"Gebäude","total ",null,null,null,null,"m2 Gebäudefläche",{"$f":"Sturz!$B$26","v":0},null,null,null,null,null,null,null,null,"Gebäude",{"$f":"SUM(Sturz!$AB$24,Sturz!$AB$31,Sturz!$AB$38,Sturz!$AB$45)","v":0}]
[null,null,{"$f":"Sturz!$B$26","v":0},"m2",null,null,null,"davon in Zonen  ",null,null,null,null,null,null,null,null,null,"davon Anteil in %"]
[null,null,"Gebäudefläche"]
[null,null,null,null,null,null,null,"mit erheblicher Gefährdung",{"$f":"Sturz!$J$25+Sturz!$J$32+Sturz!$J$39+Sturz!$J$46","v":0},{"$f":"$J$34-I115","v":0},null,null,null,null,null,null,null,"häufige Ereignisse",{"$f":"100*(Tabelle!$E$28/Tabelle!$I$28)","v":{"$error":"#DIV/0!"}},{"$f":"Tabelle!$E$28","v":0}]
[null,null,{"$f":"Sturz!$B$28","v":0},"Gebäude",null,null,null,"mit mittlerer Gefährdung",{"$f":"Sturz!$K$25+Sturz!$K$32+Sturz!$K$39+Sturz!$K$46","v":0},{"$f":"$J$34-I116","v":0},null,null,null,null,null,null,null,"mittlere Ereignisse",{"$f":"100*(Tabelle!$F$28/Tabelle!$I$28)","v":{"$error":"#DIV/0!"}},{"$f":"Tabelle!$F$28","v":0}]
[null,null,null,null,null,null,null,"mit geringer Gefährdung",{"$f":"Sturz!$L$25+Sturz!$L$32+Sturz!$L$39+Sturz!$L$46","v":0},0,null,null,null,null,null,null,null,"seltene Ereignisse",{"$f":"100*(Tabelle!$G$28/Tabelle!$I$28)","v":{"$error":"#DIV/0!"}},{"$f":"Tabelle!$G$28","v":0}]
[null,null,null,null,null,null,null,"mit Restgefährdung",{"$f":"Sturz!$M$25+Sturz!$M$32+Sturz!$M$39+Sturz!$M$46","v":0},0,null,null,null,null,null,null,null,"sehr seltene Ereignisse",{"$f":"100*(Tabelle!$H$28/Tabelle!$I$28)","v":{"$error":"#DIV/0!"}},{"$f":"Tabelle!$H$28","v":0}]
[null,null,null,null,null,null,null,"im Gefahrenhinweisgebiet",{"$f":"Sturz!$H$28+Sturz!$H$35+Sturz!$H$42+Sturz!$H$49","v":0},0]
[]
[]
[null,null,null,null,null,"Hauptprozess LAWINE"]
[]
[null,"SCHUTZGUT",null,null,null,"BETROFFENE",null,null,null,null,"RISIKO"]
[]
[null,null,null,null,null,"nach Gefahrenstufe bzw. im Gefahrenhinweisgebiet",null,null,null,null,"Individuelles Todesfallrisiko ",null,null,null,null,"jährlicher Schadenerwartungswert in CHF"]
[]
[null,"Wohnbevölkerung ","total ",null,null,null,null,"Einwohnerinnen und Einwohner",{"$f":"Lawine!$B$13","v":0},null,null,null,"Einwohnerinnen und Einwohner",{"$f":"Lawine!$B$13","v":0}]
[null,null,{"$f":"Lawine!$B$13","v":0},null,null,null,null,"davon in Zonen  ",null,null,null,null,"davon mit einem"]
[null,null,"Einwohnerinnen und",null,null,null,null,null,null,null,null,null,"individuellen Todesfallrisiko "]
[null,null,"Einwohner",null,null,null,null,"mit erheblicher Gefährdung",{"$f":"Lawine!$J$11","v":0},{"$f":"$J$10-I131","v":0}]
[null,null,null,null,null,null,null,"mit mittlerer Gefährdung",{"$f":"Lawine!$K$11","v":0},{"$f":"$J$10-I132","v":0},null,null,"grösser als 10-5",{"$f":"Lawine!$U$10","v":0}]
[null,null,null,null,null,null,null,"mit geringer Gefährdung",{"$f":"Lawine!$L$11","v":0},0,null,null,"kleiner als 10-5",{"$f":"SUM(I131:I134)-N132","v":0},null,null,null,"Personen",{"$f":"Lawine!$AB$10+Lawine!$AB$17","v":0}]
[null,null,null,null,null,null,null,"mit Restgefährdung",{"$f":"Lawine!$M$11","v":0},0,null,null,"nicht betroffen",{"$f":"N128-N132-N133","v":0},null,null,null,"davon Anteil in %"]
[null,null,null,null,null,null,null,"im Gefahrenhinweisgebiet",{"$f":"Lawine!$H$14","v":0},0]
[null,null,null,null,null,null,null,null,null,null,null,null,null,null,null,null,null,"häufige Ereignisse",{"$f":"100*(Tabelle!$E$32/Tabelle!$I$32)","v":{"$error":"#DIV/0!"}},{"$f":"Tabelle!$E$32","v":0}]
[null,null,null,null,null,null,null,null,null,null,null,null,null,null,null,null,null,"mittlere Ereignisse",{"$f":"100*(Tabelle!$F$32/Tabelle!$I$32)","v":{"$error":"#DIV/0!"}},{"$f":"Tabelle!$F$32","v":0}]
[null,null,null,null,null,null,null,null,null,null,null,null,null,null,null,null,null,"seltene Ereignisse",{"$f":"100*(Tabelle!$G$32/Tabelle!$I$32)","v":{"$error":"#DIV/0!"}},{"$f":"Tabelle!$G$32","v":0}]
[null,null,null,null,null,null,null,null,null,null,null,null,null,null,null,null,null,"sehr seltene Ereignisse",{"$f":"100*(Tabelle!$H$32/Tabelle!$I$32)","v":{"$error":"#DIV/0!"}},{"$f":"Tabelle!$H$32","v":0}]
[null,"Beschäftigte","total ",null,null,null,null,"Beschäftigte",{"$f":"Lawine!$B$20","v":0},null,null,null,"Beschäftigte",{"$f":"Lawine!$B$20","v":0}]
[null,null,{"$f":"Lawine!$B$20","v":0},null,null,null,null,"davon in Zonen  ",null,null,null,null,"davon mit einem"]
[null,null,"Beschäftigte",null,null,null,null,null,null,null,null,null,"individuellen Todesfallrisiko "]
[null,null,null,null,null,null,null,"mit erheblicher Gefährdung",{"$f":"Lawine!$J$18","v":0},{"$f":"$J$10-I143","v":0}]
[null,null,null,null,null,null,null,"mit mittlerer Gefährdung",{"$f":"Lawine!$K$18","v":0},{"$f":"$J$10-I144","v":0},null,null,"grösser als 10-5",{"$f":"Lawine!$U$17","v":0}]
[null,null,null,null,null,null,null,"mit geringer Gefährdung",{"$f":"Lawine!$L$18","v":0},0,null,null,"kleiner als 10-5",{"$f":"SUM(I143:I146)-N144","v":0}]
[null,null,null,null,null,null,null,"mit Restgefährdung",{"$f":"Lawine!$M$18","v":0},0,null,null,"nicht betroffen",{"$f":"N140-N144-N145","v":0}]
[null,null,null,null,null,null,null,"im Gefahrenhinweisgebiet",{"$f":"Lawine!$H$21","v":0},0]
[]
[]
[]
[]
[null,"Gebäude","total ",null,null,null,null,"m2 Gebäudefläche",{"$f":"Lawine!$B$26","v":0},null,null,null,null,null,null,null,null,"Gebäude",{"$f":"SUM(Lawine!$AB$24,Lawine!$AB$31,Lawine!$AB$38,Lawine!$AB$45)","v":0}]
[null,null,{"$f":"Lawine!$B$26","v":0},"m2",null,null,null,"davon in Zonen  ",null,null,null,null,null,null,null,null,null,"davon Anteil in %"]
[null,null,"Gebäudefläche"]
[null,null,null,null,null,null,null,"mit erheblicher Gefährdung",{"$f":"Lawine!$J$25+Lawine!$J$32+Lawine!$J$39+Lawine!$J$46","v":0},{"$f":"$J$34-I155","v":0},null,null,null,null,null,null,null,"häufige Ereignisse",{"$f":"100*(Tabelle!$E$37/Tabelle!$I$37)","v":{"$error":"#DIV/0!"}},{"$f":"Tabelle!$E$37","v":0}]
[null,null,{"$f":"Lawine!$B$28","v":0},"Gebäude",null,null,null,"mit mittlerer Gefährdung",{"$f":"Lawine!$K$25+Lawine!$K$32+Lawine!$K$39+Lawine!$K$46","v":0},{"$f":"$J$34-I156","v":0},null,null,null,null,null,null,null,"mittlere Ereignisse",{"$f":"100*(Tabelle!$F$37/Tabelle!$I$37)","v":{"$error":"#DIV/0!"}},{"$f":"Tabelle!$F$37","v":0}]
[null,null,null,null,null,null,null,"mit geringer Gefährdung",{"$f":"Lawine!$L$25+Lawine!$L$32+Lawine!$L$39+Lawine!$L$46","v":0},0,null,null,null,null,null,null,null,"seltene Ereignisse",{"$f":"100*(Tabelle!$G$37/Tabelle!$I$37)","v":{"$error":"#DIV/0!"}},{"$f":"Tabelle!$G$37","v":0}]
[null,null,null,null,null,null,null,"mit Restgefährdung",{"$f":"Lawine!$M$25+Lawine!$M$32+Lawine!$M$39+Lawine!$M$46","v":0},0,null,null,null,null,null,null,null,"sehr seltene Ereignisse",{"$f":"100*(Tabelle!$H$37/Tabelle!$I$37)","v":{"$error":"#DIV/0!"}},{"$f":"Tabelle!$H$37","v":0}]
[null,null,null,null,null,null,null,"im Gefahrenhinweisgebiet",{"$f":"Lawine!$H$28+Lawine!$H$35+Lawine!$H$42+Lawine!$H$49","v":0},0]
[]
[]
[]
[]
[null,null,null,null,null,null,null,null,null,null,"RISIKO GESAMT"]
[]
[null,null,null,null,null,null,null,null,null,null,null,null,null,null,null,"jährlicher Schadenerwartungswert in CHF"]
[]
[]
[]
[null,null,null,null,null,null,null,null,null,null,null,null,null,null,null,null,null,"GESAMT",{"$f":"S13+S32+S53+S72+S93+S112+S133+S152","v":0}]
[null,null,null,null,null,null,null,null,null,null,null,null,null,null,null,null,null,"davon Anteil in %"]
[]
[null,null,null,null,null,null,null,null,null,null,null,null,null,null,null,null,null,"häufige Ereignisse",{"$f":"100*(Tabelle!$E$39/Tabelle!$I$39)","v":{"$error":"#DIV/0!"}},{"$f":"Tabelle!$E$39","v":0}]
[null,null,null,null,null,null,null,null,null,null,null,null,null,null,null,null,null,"mittlere Ereignisse",{"$f":"100*(Tabelle!$F$39/Tabelle!$I$39)","v":{"$error":"#DIV/0!"}},{"$f":"Tabelle!$F$39","v":0}]
[null,null,null,null,null,null,null,null,null,null,null,null,null,null,null,null,null,"seltene Ereignisse",{"$f":"100*(Tabelle!$G$39/Tabelle!$I$39)","v":{"$error":"#DIV/0!"}},{"$f":"Tabelle!$G$39","v":0}]
[null,null,null,null,null,null,null,null,null,null,null,null,null,null,null,null,null,"sehr seltene Ereignisse",{"$f":"100*(Tabelle!$H$39/Tabelle!$I$39)","v":{"$error":"#DIV/0!"}},{"$f":"Tabelle!$H$39","v":0}]

{"sheet":"Tabelle","index":6,"n_rows":45,"n_cols":15,"rows_kept":45,"cut":false,"hidden":false,"merged":[]}
["Haupt-\nprozess","Schutzgut",null,"Anzahl\nPersonen","monetarisiertes Risiko\nAnteil 30-jährlich\nbis 100-jährlich","monetarisiertes Risiko\nAnteil 100-jährlich bis 300-jährlich","monetarisiertes Risiko\nAnteil 300-jährlich bis extrem","monetarisiertes Risiko\nAnteil über extrem\n","jährlicher\nSchadenerwartungs-\nwert\n",null,1,null,"KONTROLLE",null,"Wiederkehrperiode\nGrundszenario extrem\n(Extremereignis)"]
[null,null,null,null,null,null,null,null,null,null,2]
["Wasser","Personen","Wohnbevölkerung",{"$f":"Wasser!$B$13","v":0},{"$f":"Wasser!$W$10*(1/30-1/100)","v":0},{"$f":"Wasser!$X$10*(1/100-1/300)","v":0},{"$f":"Wasser!$Y$10*(1/300-1/$O$3)","v":0},{"$f":"IF(Wasser!Z10=0,Wasser!Y10*((1/$O$3)-(0)),(Wasser!Z10-0)*((1/$O$3)-(0)))","v":0},{"$f":"SUM(E3:H3)","v":0},null,3,null,null,null,1000]
[null,null,"Beschäftigte",{"$f":"Wasser!$B$20","v":0},{"$f":"Wasser!$W$17*(1/30-1/100)","v":0},{"$f":"Wasser!$X$17*(1/100-1/300)","v":0},{"$f":"Wasser!$Y$17*(1/300-1/$O$3)","v":0},{"$f":"IF(Wasser!Z17=0,Wasser!Y17*((1/$O$3)-(0)),(Wasser!Z17-0)*((1/$O$3)-(0)))","v":0},{"$f":"SUM(E4:H4)","v":0},null,4]
[null,null,"Total",null,{"$f":"E3+E4","v":0},{"$f":"F3+F4","v":0},0,0,{"$f":"I3+I4","v":0},null,5,null,{"$f":"Cockpit!S13-Tabelle!I5","v":0}]
[null,"Gebäude","wohnen",null,{"$f":"Wasser!$W$24*(1/30-1/100)","v":0},{"$f":"Wasser!$X$24*(1/100-1/300)","v":0},{"$f":"Wasser!$Y$24*(1/300-1/$O$3)","v":0},{"$f":"IF(Wasser!Z24=0,Wasser!Y24*((1/$O$3)-(0)),(Wasser!Z24-0)*((1/$O$3)-(0)))","v":0},{"$f":"SUM(E6:H6)","v":0},null,6]
[null,null,"arbeiten",null,{"$f":"Wasser!$W$31*(1/30-1/100)","v":0},{"$f":"Wasser!$X$31*(1/100-1/300)","v":0},{"$f":"Wasser!$Y$31*(1/300-1/$O$3)","v":0},{"$f":"IF(Wasser!Z31=0,Wasser!Y31*((1/$O$3)-(0)),(Wasser!Z31-0)*((1/$O$3)-(0)))","v":0},{"$f":"SUM(E7:H7)","v":0},null,7]
[null,null,"gemischt",null,{"$f":"Wasser!$W$38*(1/30-1/100)","v":0},{"$f":"Wasser!$X$38*(1/100-1/300)","v":0},{"$f":"Wasser!$Y$38*(1/300-1/$O$3)","v":0},{"$f":"IF(Wasser!Z38=0,Wasser!Y38*((1/$O$3)-(0)),(Wasser!Z38-0)*((1/$O$3)-(0)))","v":0},0,null,8]
[null,null,"übrig",null,{"$f":"Wasser!$W$45*(1/30-1/100)","v":0},{"$f":"Wasser!$X$45*(1/100-1/300)","v":0},{"$f":"Wasser!$Y$45*(1/300-1/$O$3)","v":0},{"$f":"IF(Wasser!Z45=0,Wasser!Y45*((1/$O$3)-(0)),(Wasser!Z45-0)*((1/$O$3)-(0)))","v":0},0,null,9]
[null,null,"Total",null,{"$f":"SUM(E6:E9)","v":0},{"$f":"SUM(F6:F9)","v":0},0,0,{"$f":"I6+I7+I8+I9","v":0},null,10,null,{"$f":"Cockpit!S32-Tabelle!I10","v":0}]
[null,null,null,null,null,null,null,null,null,null,11]
["Rutschung","Personen","Wohnbevölkerung",{"$f":"Rutschung!$B$13","v":0},{"$f":"Rutschung!$W$10*(1/30-1/100)","v":0},{"$f":"Rutschung!$X$10*(1/100-1/300)","v":0},{"$f":"Rutschung!$Y$10*(1/300-1/$O$12)","v":0},{"$f":"IF(Rutschung!Z10=0,Rutschung!Y10*((1/$O$12)-(0)),(Rutschung!Z10-0)*((1/$O$12)-(0)))","v":0},{"$f":"SUM(E12:H12)","v":0},null,12,null,null,null,1000]
[null,null,"Beschäftigte",{"$f":"Rutschung!$B$20","v":0},{"$f":"Rutschung!$W$17*(1/30-1/100)","v":0},{"$f":"Rutschung!$X$17*(1/100-1/300)","v":0},{"$f":"Rutschung!$Y$17*(1/300-1/$O$12)","v":0},{"$f":"IF(Rutschung!Z17=0,Rutschung!Y17*((1/$O$12)-(0)),(Rutschung!Z17-0)*((1/$O$12)-(0)))","v":0},{"$f":"SUM(E13:H13)","v":0},null,13]
[null,null,"Total",null,{"$f":"E12+E13","v":0},{"$f":"F12+F13","v":0},0,0,{"$f":"I12+I13","v":0},null,14,null,{"$f":"Cockpit!S53-Tabelle!I14","v":0}]
[null,"Gebäude","wohnen",null,{"$f":"Rutschung!$W$24*(1/30-1/100)","v":0},{"$f":"Rutschung!$X$24*(1/100-1/300)","v":0},{"$f":"Rutschung!$Y$24*(1/300-1/$O$12)","v":0},{"$f":"IF(Rutschung!Z24=0,Rutschung!Y24*((1/$O$12)-(0)),(Rutschung!Z24-0)*((1/$O$12)-(0)))","v":0},{"$f":"SUM(E15:H15)","v":0},null,15]
[null,null,"arbeiten",null,{"$f":"Rutschung!$W$31*(1/30-1/100)","v":0},{"$f":"Rutschung!$X$31*(1/100-1/300)","v":0},{"$f":"Rutschung!$Y$31*(1/300-1/$O$12)","v":0},{"$f":"IF(Rutschung!Z31=0,Rutschung!Y31*((1/$O$12)-(0)),(Rutschung!Z31-0)*((1/$O$12)-(0)))","v":0},{"$f":"SUM(E16:H16)","v":0},null,16]
[null,null,"gemischt",null,{"$f":"Rutschung!$W$38*(1/30-1/100)","v":0},{"$f":"Rutschung!$X$38*(1/100-1/300)","v":0},{"$f":"Rutschung!$Y$38*(1/300-1/$O$12)","v":0},{"$f":"IF(Rutschung!Z38=0,Rutschung!Y38*((1/$O$12)-(0)),(Rutschung!Z38-0)*((1/$O$12)-(0)))","v":0},{"$f":"SUM(E17:H17)","v":0},null,17]
[null,null,"übrig",null,{"$f":"Rutschung!$W$45*(1/30-1/100)","v":0},{"$f":"Rutschung!$X$45*(1/100-1/300)","v":0},{"$f":"Rutschung!$Y$45*(1/300-1/$O$12)","v":0},{"$f":"IF(Rutschung!Z45=0,Rutschung!Y45*((1/$O$12)-(0)),(Rutschung!Z45-0)*((1/$O$12)-(0)))","v":0},0,null,18]
[null,null,"Total",null,{"$f":"SUM(E15:E18)","v":0},{"$f":"SUM(F15:F18)","v":0},{"$f":"SUM(G15:G18)","v":0},0,{"$f":"I15+I16+I17+I18","v":0},null,19,null,{"$f":"Cockpit!S72-Tabelle!I19","v":0}]
[null,null,null,null,null,null,null,null,null,null,20]
["Sturz","Personen","Wohnbevölkerung",{"$f":"Sturz!$B$13","v":0},{"$f":"Sturz!$W$10*(1/30-1/100)","v":0},{"$f":"Sturz!$X$10*(1/100-1/300)","v":0},{"$f":"Sturz!$Y$10*(1/300-1/$O$21)","v":0},{"$f":"IF(Sturz!Z10=0,Sturz!Y10*((1/$O$21)-(0)),(Sturz!Z10-0)*((1/$O$21)-(0)))","v":0},{"$f":"SUM(E21:H21)","v":0},null,21,null,null,null,1000]
[null,null,"Beschäftigte",{"$f":"Sturz!$B$20","v":0},{"$f":"Sturz!$W$17*(1/30-1/100)","v":0},{"$f":"Sturz!$X$17*(1/100-1/300)","v":0},{"$f":"Sturz!$Y$17*(1/300-1/$O$21)","v":0},{"$f":"IF(Sturz!Z17=0,Sturz!Y17*((1/$O$21)-(0)),(Sturz!Z17-0)*((1/$O$21)-(0)))","v":0},{"$f":"SUM(E22:H22)","v":0},null,22]
[null,null,"Total",null,{"$f":"E21+E22","v":0},{"$f":"F21+F22","v":0},{"$f":"G21+G22","v":0},0,{"$f":"I21+I22","v":0},null,23,null,{"$f":"Cockpit!S93-Tabelle!I23","v":0}]
[null,"Gebäude","wohnen",null,{"$f":"Sturz!$W$24*(1/30-1/100)","v":0},{"$f":"Sturz!$X$24*(1/100-1/300)","v":0},{"$f":"Sturz!$Y$24*(1/300-1/$O$21)","v":0},{"$f":"IF(Sturz!Z24=0,Sturz!Y24*((1/$O$21)-(0)),(Sturz!Z24-0)*((1/$O$21)-(0)))","v":0},{"$f":"SUM(E24:H24)","v":0},null,24]
[null,null,"arbeiten",null,{"$f":"Sturz!$W$31*(1/30-1/100)","v":0},{"$f":"Sturz!$X$31*(1/100-1/300)","v":0},{"$f":"Sturz!$Y$31*(1/300-1/$O$21)","v":0},{"$f":"IF(Sturz!Z31=0,Sturz!Y31*((1/$O$21)-(0)),(Sturz!Z31-0)*((1/$O$21)-(0)))","v":0},{"$f":"SUM(E25:H25)","v":0},null,25]
[null,null,"gemischt",null,{"$f":"Sturz!$W$38*(1/30-1/100)","v":0},{"$f":"Sturz!$X$38*(1/100-1/300)","v":0},{"$f":"Sturz!$Y$38*(1/300-1/$O$21)","v":0},{"$f":"IF(Sturz!Z38=0,Sturz!Y38*((1/$O$21)-(0)),(Sturz!Z38-0)*((1/$O$21)-(0)))","v":0},{"$f":"SUM(E26:H26)","v":0},null,26]
[null,null,"übrig",null,{"$f":"Sturz!$W$45*(1/30-1/100)","v":0},{"$f":"Sturz!$X$45*(1/100-1/300)","v":0},{"$f":"Sturz!$Y$45*(1/300-1/$O$21)","v":0},{"$f":"IF(Sturz!Z45=0,Sturz!Y45*((1/$O$21)-(0)),(Sturz!Z45-0)*((1/$O$21)-(0)))","v":0},0,null,27]
[null,null,"Total",null,{"$f":"SUM(E24:E27)","v":0},{"$f":"SUM(F24:F27)","v":0},{"$f":"SUM(G24:G27)","v":0},0,{"$f":"I24+I25+I26+I27","v":0},null,28,null,{"$f":"Cockpit!S112-Tabelle!I28","v":0}]
[null,null,null,null,null,null,null,null,null,null,29]
["Lawine","Personen","Wohnbevölkerung",{"$f":"Lawine!$B$13","v":0},{"$f":"Lawine!$W$10*(1/30-1/100)","v":0},{"$f":"Lawine!$X$10*(1/100-1/300)","v":0},{"$f":"Lawine!$Y$10*(1/300-1/$O$30)","v":0},{"$f":"IF(Lawine!Z10=0,Lawine!Y10*((1/$O$30)-(0)),(Lawine!Z10-0)*((1/$O$30)-(0)))","v":0},{"$f":"SUM(E30:H30)","v":0},null,30,null,null,null,1000]
[null,null,"Beschäftigte",{"$f":"Lawine!$B$20","v":0},{"$f":"Lawine!$W$17*(1/30-1/100)","v":0},{"$f":"Lawine!$X$17*(1/100-1/300)","v":0},{"$f":"Lawine!$Y$17*(1/300-1/$O$30)","v":0},{"$f":"IF(Lawine!Z17=0,Lawine!Y17*((1/$O$30)-(0)),(Lawine!Z17-0)*((1/$O$30)-(0)))","v":0},{"$f":"SUM(E31:H31)","v":0},null,31]
[null,null,"Total",null,{"$f":"E30+E31","v":0},{"$f":"F30+F31","v":0},{"$f":"G30+G31","v":0},0,{"$f":"I30+I31","v":0},null,32,null,{"$f":"Cockpit!S133-Tabelle!I32","v":0}]
[null,"Gebäude","wohnen",null,{"$f":"Lawine!$W$24*(1/30-1/100)","v":0},{"$f":"Lawine!$X$24*(1/100-1/300)","v":0},{"$f":"Lawine!$Y$24*(1/300-1/$O$30)","v":0},{"$f":"IF(Lawine!Z24=0,Lawine!Y24*((1/$O$30)-(0)),(Lawine!Z24-0)*((1/$O$30)-(0)))","v":0},{"$f":"SUM(E33:H33)","v":0},null,33]
[null,null,"arbeiten",null,{"$f":"Lawine!$W$31*(1/30-1/100)","v":0},{"$f":"Lawine!$X$31*(1/100-1/300)","v":0},{"$f":"Lawine!$Y$31*(1/300-1/$O$30)","v":0},{"$f":"IF(Lawine!Z31=0,Lawine!Y31*((1/$O$30)-(0)),(Lawine!Z31-0)*((1/$O$30)-(0)))","v":0},{"$f":"SUM(E34:H34)","v":0},null,34]
[null,null,"gemischt",null,{"$f":"Lawine!$W$38*(1/30-1/100)","v":0},{"$f":"Lawine!$X$38*(1/100-1/300)","v":0},{"$f":"Lawine!$Y$38*(1/300-1/$O$30)","v":0},{"$f":"IF(Lawine!Z38=0,Lawine!Y38*((1/$O$30)-(0)),(Lawine!Z38-0)*((1/$O$30)-(0)))","v":0},{"$f":"SUM(E35:H35)","v":0},null,35]
[null,null,"übrig",null,{"$f":"Lawine!$W$45*(1/30-1/100)","v":0},{"$f":"Lawine!$X$45*(1/100-1/300)","v":0},{"$f":"Lawine!$Y$45*(1/300-1/$O$30)","v":0},{"$f":"IF(Lawine!Z45=0,Lawine!Y45*((1/$O$30)-(0)),(Lawine!Z45-0)*((1/$O$30)-(0)))","v":0},0,null,36]
[null,null,"Total",null,{"$f":"SUM(E33:E36)","v":0},{"$f":"SUM(F33:F36)","v":0},{"$f":"SUM(G33:G36)","v":0},0,{"$f":"I33+I34+I35+I36","v":0},null,37,null,{"$f":"Cockpit!S152-Tabelle!I37","v":0}]
[null,null,null,null,null,null,null,null,null,null,38]
["Gesamt",null,null,null,{"$f":"E5+E10+E14+E19+E23+E28+E32+E37","v":0},{"$f":"F5+F10+F14+F19+F23+F28+F32+F37","v":0},0,0,{"$f":"I5+I10+I14+I19+I23+I28+I32+I37","v":0},null,39,null,{"$f":"Cockpit!S170-Tabelle!I39","v":0}]
[null,null,null,null,null,null,null,null,null,null,40]
["MAX",null,null,{"$f":"MAX(D3,D4,D12,D13,D21,D22)","v":0},null,null,null,null,{"$f":"MAX(I5,I10,I14,I19,I23,I28,I32,I37,I39)","v":0},null,41]
[null,null,null,null,null,null,null,null,null,null,42]
["MAX_GRAPH",null,null,100,null,null,null,null,100,null,43]
[]
[1,2,3,4,5,6,7,8,9]